Cogmind - Beta 14 @@@ ROGUE MODE // 2024.09.15 @ 00:49:07 Player: Valkyorl Result: Destroyed by S-10 Pest via exploding Nuclear Reactor Performance ------------- Evolutions (1) 500 Regions Visited (3) 600 Robots Destroyed (42) 210 Value Destroyed (879) 879 Prototype IDs (0) 0 Alien Tech Used (0) 0 Bonus (0) 0 TOTAL SCORE: 2189 Bonus ------- None Cogmind --------- Core Integrity 0/400 Matter 133/300 Energy 34/100 System Corruption 0% Temperature Cool (0) Movement Flying (37) Location -9/Materials Parts ------- > --- POWER (1) -------- (None) > --- PROPULSION (3) --- Flight Unit Flight Unit > --- UTILITY (3) ------ Signal Interpreter > --- WEAPON (2) ------- Hammer > --- INVENTORY (5) ---- Wheel Heat Sink Structural Scanner Bomb Drone Bay Peak State ------------ > --- POWER ------------ Light Nuclear Core > --- PROPULSION ------- Wheel Wheel Compact Wheel > --- UTILITY ---------- High-capacity Storage Unit Signal Interpreter > --- WEAPON ----------- Assault Rifle Assault Rifle > --- INVENTORY -------- Ion Engine Light Ion Engine Light Treads Wheel Flight Unit Flight Unit Flight Unit Heat Sink Improved Heat Sink High-capacity Storage Unit Huge Storage Unit Structural Scanner Sensor Array Terrain Scanner Bomb Drone Bay Assault Rifle Rocket Launcher Hammer [Rating: 13] Favorites ----------- Power Ion Engine Engine Ion Engine Power Core Light Nuclear Core Propulsion Wheel Treads Light Treads Wheel Wheel Flight Unit Flight Unit Utility High-capacity Storage Unit Storage High-capacity Storage Unit Processor Signal Interpreter Protection Light Armor Plating Weapon Assault Rifle Ballistic Gun Assault Rifle Launcher Rocket Launcher Impact Weapon Hammer Build | -11 -10 -10 -9 ------- Run | Yrd Mat Min Mat Slots Evolved 2 | . . . 2 Power . | . . . . Propulsion 1 | . . . 1 Utility 1 | . . . 1 Weapon . | . . . . Parts Attached 29 | 6 8 3 12 Power 2 | 1 . 1 . Engine 1 | 1 . . . Core 1 | . . 1 . Reactor . | . . . . Propulsion 11 | 2 2 1 6 Treads 4 | 2 . . 2 Leg . | . . . . Wheel 4 | . 2 1 1 Hover . | . . . . Flight 3 | . . . 3 Utility 6 | 1 4 . 1 Device . | . . . . Storage 3 | 1 2 . . Processor 2 | . 2 . . Hackware . | . . . . Protection 1 | . . . 1 Artifact . | . . . . Weapon 10 | 2 2 1 5 Energy Gun . | . . . . Energy Cannon . | . . . . Ballistic Gun 8 | 2 2 1 3 Ballistic Cannon . | . . . . Launcher 1 | . . . 1 Special Weapon . | . . . . Impact Weapon 1 | . . . 1 Slashing Weapon . | . . . . Piercing Weapon . | . . . . Special Melee Weapon . | . . . . Unidentified Prototypes . | . . . . Parts Lost 15 | . 1 2 12 Power 1 | . . . 1 Propulsion 7 | . 1 1 5 Utility 1 | . . . 1 Weapon 6 | . . 1 5 Highest Loss Streak 8 | . 1 2 8 To Critical Strikes . | . . . . Average Slot Usage (%) 88 | . 90 89 64 Engine 8 | . 13 . . Core 1 | . . 4 5 Treads 4 | . 7 . 6 Wheel 22 | . 20 27 14 Storage 14 | . 15 14 10 Processor 8 | . 5 14 11 Ballistic Gun 26 | . 28 28 12 Peak Build Rating 13 | 6 9 12 13 Average Rating 7 | 5 7 9 9 On Entrance 6 | . 6 7 12 Naked Turns . | . . . . Heaviest Build 94 | 14 94 49 49 Greatest Support 40 | 40 40 26 40 Greatest Overweight (x) 3 | . 3 2 1 Average Overweight (x) . | . . 1 . Largest Inventory Capacity 25 | 8 25 20 20 Average Capacity 18 | 7 18 20 18 Most Carried 20 | 5 20 20 19 Average Carried 15 | 2 14 19 16 Final Capacity 20 | 8 20 20 5 Final Carried 20 | 4 19 20 5 Class Distribution -------------------- 97% | Mutant Dominant Class ---------------- Mutant | -10/Materials Mutant | -10/Mines Scavenger-Mutant | -9/Materials Resources | -11 -10 -10 -9 ----------- Run | Yrd Mat Min Mat Matter Collected 922 | 195 592 122 13 Remotely . | . . . . Salvage Created 1152 | . 780 205 167 Parts 103 | . 63 15 25 Haulers Intercepted 1 | . 1 . . Recyclers Shooed . | . . . . Parts Field Recycled . | . . . . Retrieved Matter . | . . . . Parts Self-Destructed . | . . . . Prevented . | . . . . Kills | -11 -10 -10 -9 ------- Run | Yrd Mat Min Mat Combat Hostiles Destroyed 29 | . 18 5 6 Guns 26 | . 18 5 3 AOE 3 | . . . 3 Classes Destroyed 9 | . 7 1 1 Worker 2 | . 1 . 1 Builder 4 | . 2 . 2 Hauler 1 | . 1 . . Recycler 1 | . . 1 . Operator 1 | . 1 . . Watcher 4 | . 3 . 1 Swarmer 12 | . 6 3 3 Grunt 15 | . 12 2 1 Sentry 2 | . . . 2 Best Kill Streak 10 | . 10 3 9 Combat Bots Only 7 | . 7 3 5 Max Kills in Single Turn 2 | . 2 1 2 Gunslinging 1 | . 1 . . Exploded 1 | . . . 1 Melee . | . . . . Uniques/NPCs Destroyed . | . . . . Combat | -11 -10 -10 -9 -------- Run | Yrd Mat Min Mat Hostile Shots Fired 258 | . 81 34 143 Missed 71 | . 24 12 35 Damage Taken 2252 | . 759 220 1273 Core 601 | . 115 45 441 Absorbed by Shields . | . . . . Core Remaining (%) 68 | 100 . 36 . Volleys Fired 103 | . 67 17 19 Largest 2 | . 2 2 2 Hottest 43 | . 40 40 43 Shots Fired 198 | . 134 34 30 Gun 193 | . 134 34 25 Cannon . | . . . . Launcher 5 | . . . 5 Special . | . . . . Kinetic 193 | . 134 34 25 Thermal . | . . . . Explosive 5 | . . . 5 Electromagnetic . | . . . . Robot Hit Streak 10 | . 8 10 7 Robot Miss Streak 5 | . 5 3 1 Penetration Max . | . . . . Secondary Targets 9 | . 7 1 1 Max Gunslinging Chain 1 | . 1 1 1 Shots Hit Robots 122 | . 80 19 23 Core Hits 64 | . 39 9 16 Critical Kills 1 | . 1 . . Critical Parts Destroyed 1 | . 1 . . Critical Strikes 2 | . 2 . . Destroy 2 | . 2 . . Melee Attacks 2 | . . . 2 Impact 2 | . . . 2 Slashing . | . . . . Piercing . | . . . . Sneak Attacks . | . . . . Combat Hostiles . | . . . . Follow-up Attacks . | . . . . Damage Inflicted 2185 | . 1078 232 875 Guns 1580 | . 1078 232 270 Cannons . | . . . . Explosions 605 | . . . 605 Melee . | . . . . Ramming . | . . . . Kinetic 1580 | . 1078 232 270 Thermal . | . . . . Explosive 605 | . . . 605 Electromagnetic . | . . . . Impact . | . . . . Slashing . | . . . . Piercing . | . . . . Highest Corruption . | . . . . Average Corruption . | . . . . Corruption Purged . | . . . . Corruption Blocked . | . . . . Overload Shots . | . . . . Overflow Damage 82 | . . . 82 Projectiles . | . . . . Explosions 82 | . . . 82 Melee . | . . . . Knockbacks . | . . . . Impact . | . . . . Kinetic . | . . . . Secondary . | . . . . Self-Inflicted Damage 89 | . . . 89 Shots 4 | . . . 4 Rammed . | . . . . Targets Rammed . | . . . . Kicked . | . . . . Crushed . | . . . . Highest Temperature 20 | . 20 15 10 Average Temperature 6 | . 6 15 4 Received Heat Transfer 666 | . 354 90 222 Siege Activations . | . . . . Robots Corrupted . | . . . . Combat Hostiles . | . . . . Parts Fried . | . . . . Impact Corruptions . | . . . . Robots Melted . | . . . . Combat Hostiles . | . . . . Parts Melted . | . . . . Heat Transferred . | . . . . Parts Sabotaged . | . . . . Parts Stolen . | . . . . Parts Stripped . | . . . . Power Chain Reactions . | . . . . Alert | -11 -10 -10 -9 ------- Run | Yrd Mat Min Mat Peak Influence 349 | . 349 151 137 Initial 31 | . . 31 . Average 107 | . 155 46 48 Maximum Alert Level 1 | . 1 . . Low Security (%) 93 | 100 89 100 100 Level 1 6 | . 10 . . Level 2 . | . . . . Level 3 . | . . . . Level 4 . | . . . . Level 5 . | . . . . High Security . | . . . . Max Security . | . . . . Squads Dispatched 5 | . 5 . . Investigation 4 | . 4 . . Extermination . | . . . . Reinforcement 1 | . 1 . . Assault . | . . . . Garrison . | . . . . Intercept . | . . . . Searches Triggered . | . . . . Construction Impeded . | . . . . Haulers Reinforced . | . . . . Active Scanning Responses . | . . . . Cargo Convoy Interrupts . | . . . . Stealth | -11 -10 -10 -9 --------- Run | Yrd Mat Min Mat Distress Signals 1 | . . . 1 Communications Jammed . | . . . . Distress Signals . | . . . . Times Spotted 49 | . 26 5 18 Peak Tracking Total 8 | . 5 3 8 Tactical Retreats 2 | . 1 . 1 Traps | -11 -10 -10 -9 ------- Run | Yrd Mat Min Mat Traps Triggered 4 | . 4 . . Indirectly . | . . . . Trap Hack Attempts . | . . . . Triggered . | . . . . Disarmed . | . . . . Reprogrammed . | . . . . Reused . | . . . . Traps Extracted . | . . . . Installed . | . . . . Triggered . | . . . . Machines | -11 -10 -10 -9 ---------- Run | Yrd Mat Min Mat Machines Disabled 1 | . . 1 . Max in Single Turn 1 | . . 1 . Machines Repaired . | . . . . Machines Dismantled . | . . . . Machines Sabotaged . | . . . . Overloaded Fab Kills . | . . . . Hacking | -11 -10 -10 -9 --------- Run | Yrd Mat Min Mat Machines Accessed 7 | . 6 1 . Terminals 6 | . 6 . . Fabricators . | . . . . Repair Stations . | . . . . Recycling Units . | . . . . Scanalyzers . | . . . . Garrison Access . | . . . . Total Hacks 12 | . 11 1 . Successful 6 | . 5 1 . Failed 6 | . 6 . . Catastrophic 1 | . 1 . . Database Lockouts . | . . . . Manual . | . . . . Terminals 11 | . 11 . . Fabricators . | . . . . Repair Stations . | . . . . Recycling Units . | . . . . Scanalyzers . | . . . . Garrison Access . | . . . . Terminal Hacks 6 | . 5 1 . Open Door 1 | . . 1 . Locate Traps 1 | . 1 . . Transport Status 1 | . 1 . . Recall Investigation 1 | . 1 . . Hauler Manifests 1 | . 1 . . Zone Layout 1 | . 1 . . Fabricator Hacks . | . . . . Repair Station Hacks . | . . . . Recycling Unit Hacks . | . . . . Scanalyzer . | . . . . Garrison Access Hacks . | . . . . Unauthorized Hacks . | . . . . Terminals . | . . . . Fabricators . | . . . . Repair Stations . | . . . . Recycling Units . | . . . . Scanalyzers . | . . . . Garrison Access . | . . . . Data Cores Recovered 1 | . 1 . . Used . | . . . . Hacking Detections 3 | . 3 . . Full Trace Events 1 | . 1 . . Feedback Events . | . . . . Feedback Blocked . | . . . . Robot Schematics Acquired . | . . . . Robots Built . | . . . . Authchips . | . . . . Time . | . . . . Total Robot Build Rating . | . . . . Part Schematics Acquired . | . . . . Parts Built . | . . . . Authchips . | . . . . Time . | . . . . Total Part Build Rating . | . . . . Parts Repaired . | . . . . Time . | . . . . Parts Recycled . | . . . . Recycled Matter . | . . . . Retrieved Matter . | . . . . Retrieved Components . | . . . . Parts Scanalyzed . | . . . . Part Schematics Acquired . | . . . . Parts Damaged . | . . . . Bothacking | -11 -10 -10 -9 ------------ Run | Yrd Mat Min Mat Used RIF Installer . | . . . . Robots Hacked . | . . . . Non-combat . | . . . . Combat . | . . . . Robot Hacks Applied . | . . . . Relay Couplers Released . | . . . . Fabnet Peak Effective % . | . . . . Robots Rewired . | . . . . Allies Hacked . | . . . . Hacks Repelled . | . . . . Allies | -11 -10 -10 -9 -------- Run | Yrd Mat Min Mat Total Allies . | . . . . Largest Group . | . . . . Highest-Rated Group . | . . . . Highest-Rated Ally . | . . . . Total Orders . | . . . . Ally Attacks . | . . . . Total Damage . | . . . . Kills . | . . . . Allies Corrupted . | . . . . Allies Melted . | . . . . Intel | -11 -10 -10 -9 ------- Run | Yrd Mat Min Mat Robot Analysis Total . | . . . . Derelict Logs Recovered 2 | . . 2 . Drone Launches . | . . . . Drone Recoveries . | . . . . Exploration | -11 -10 -10 -9 ------------- Run | Yrd Mat Min Mat Turns Passed 2116 | 107 1222 640 147 Spaces Moved 1536 | 67 840 554 75 Core 14 | 14 . . . Treads 204 | 53 137 . 14 Legs . | . . . . Wheels 1302 | . 703 554 45 Hover . | . . . . Flight 16 | . . . 16 Fastest Speed 34 | 50 105 105 34 Average Speed 112 | 137 116 105 100 Slowest Speed 320 | 160 320 130 240 Overloaded Moves . | . . . . Propulsion Burnouts . | . . . . Robots Hopped . | . . . . Cave-ins Triggered . | . . . . Exploration Rate (%) 48 | 5 83 93 14 Regions Visited 3 Branch Regions 1 Pre-discovered Areas . | . . . . Known Exits Taken 2 | . 1 1 . Unknown Exits Taken 1 | 1 . . . Scrap Searched 1 | . . 1 . Spaces Dug 2 | . . . 2 Terrain Destroyed 28 | . . . 28 Melee 2 | . . . 2 Projectile . | . . . . AOE 26 | . . . 26 Terrain Rammed . | . . . . Walls Destroyed . | . . . . Machines Disabled . | . . . . Actions | -11 -10 -10 -9 --------- Run | Yrd Mat Min Mat Total 1728 | 82 953 578 115 Wait . | . . . . Move 1533 | 66 839 553 75 Hop . | . . . . Pick Up 45 | 10 27 4 4 Fast Attach 2 | . 1 . 1 Attach 23 | 6 3 3 11 Detach . | . . . . Swap 4 | . 4 . . Drop 16 | . 12 1 3 Fire 103 | . 67 17 19 Melee 2 | . . . 2 Ram . | . . . . Kick . | . . . . Crush . | . . . . Escape Stasis . | . . . . Rewire . | . . . . Trap . | . . . . Miscellaneous . | . . . . Route ------- -11/Scrapyard -10/Materials (discovered 4 exits: *Mat x3 / *Min) -10/Mines (discovered 2 exits: *Mat x2) -9/Materials History --------- Turn | Location | Event 6 | -11/Scrapyard | Discovered new exit (range 15) 108 | -11/Scrapyard | Entered Materials 318 | -10/Materials | Build established: Mutant 435 | -10/Materials | Destroyed 7 combat bots 453 | -10/Materials | Discovered new exit (range 16) 538 | -10/Materials | Discovered new exit (range 11) 886 | -10/Materials | Discovered new exit (range 6) 1159 | -10/Materials | Identified exit to Materials 1235 | -10/Materials | Identified exit to Mines 1255 | -10/Materials | Discovered exit to Materials (range 5) 1330 | -10/Materials | Entered Mines 1351 | -10/Mines | Discovered exit to Materials (range 6) 1459 | -10/Mines | Received a Rocket Launcher from a helpful Derelict 1534 | -10/Mines | Core integrity fell below 50% 1750 | -10/Mines | Found the Drone Emporium 1758 | -10/Mines | Found Prototype Device 1781 | -10/Mines | Learned Materials terminal intel 1961 | -10/Mines | Discovered exit to Materials (range 8) 1970 | -10/Mines | Entered Materials 1970 | -9/Materials | Evolved 2 slots: Propulsion x1, Utility x1 1971 | -9/Materials | Loaded intel: 10 terminal locations 2052 | -9/Materials | Core integrity fell below 50% 2083 | -9/Materials | Lost 8 parts (1p3n4w) 2102 | -9/Materials | Core integrity fell below 20% 2117 | -9/Materials | Destroyed by S-10 Pest via exploding Nuclear Reactor Last Messages --------------- U-05 Engineer lays Concrete. Hvy. Assault Rifle destroyed. U-05 Engineer lays Concrete. Lgt. Armor Plating destroyed. U-05 Engineer builds a Door. Dropped Lgt. Treads. Dropped Lgt. Assault Rifle. U-05 Engineer builds a Wall. R-06 Scavenger collects Lgt. Treads. U-05 Engineer builds a Wall. R-06 Scavenger collects Lgt. Treads. Dropped Hcp. Storage Unit. S-10 Pest destroyed. U-05 Engineer lays Concrete. Acquired Hammer. U-05 Engineer lays Concrete. Flight Unit destroyed. U-05 Engineer builds a Wall. U-05 Engineer lays Concrete. Nuclear Reactor explodes. Map ----- +----------------------------------------------------+ | ?????????????????????????????????????????????????? | | ?????????????????????????????????????????????????? | | ?????????????????????????????????????????????????? | | ?????????????????????????????????????????????????? | | ?????????????????????????????????????????????????? | | ?????????????????????????????????????????????????? | | ?????????????????????????????????????????????????? | | ?????????????????????????????????????????????????? | | ?????????????????????????????????????????????????? | | ?????????????????????????????????????????????????? | | ?????????????????????????????????????????????????? | | ?????????????????????????????????????????????????? | | ???????????????????????????????# ???????##??????? | | ??????????????????????????? ?######%###????? | | ?????????????T???????????? ?# =/!![#????? | | ???????????????????????? ?? ?# =/ #????? | | ???????????????????????? ? # // #????? | | ???????????????????????? ? # #????? | | ????????????????????????# ??? + * #????? | | ????????????????????????# ???? # #????? | | ????????????????????????#+##+### # ! " " #????? | | ????????????????????????# # # "R" #???#+ | | ????????????????????????#s""" # # """ ### | | ????????????????????????# """ # = ########## # | | ???????????????????????## """ # %*![* | | ???????????????????????#;@ ss # *!=!! | | ???????????????????????## # !! = * | | ????????????????????????# s ####/#!# ## ### | | ????????????????????????# s# # # ##+ | | ????????????????????????# s # "" # # | | ????????????????????????# """ ; T" # # """ " | | ????????????????????????# """ # "" # # """""" | | ????????????????????????# """ # # # """ | | ????????????????????????# # # # | | ????????????????????????############### + | | ??????????????????????????????????????# # | | ??????????????????????????????????????# ######## | | ??????????????????????????????????????# #?###### | | ??????????????????????????????????????# #?""" # | | ??????????????????????????????????????# # """ # | | ??????????????????????????????????????# # """ # | | ??????????????????????????????????????# + # | | ???????????????????????????????######?# # # | | ???????????????????????????????? ?# # # | | ???????????????????????????????? """" # #?###### | | ??????????????????????????????? """" # #??????? | | ??????????????????????????????? """" + #??????? | | ????????????????????????????# # #??????? | | ????????????????????????????# # ######## | | ????????????????????????????# ?# # | +----------------------------------------------------+ Best States ------------- Heat Dissipation 28 Energy Generation 14 Energy Capacity 250 Matter Stores 300 Matter Capacity 300 Sight Range 16 Terrain Scan Density 10 Armor Coverage 150 Evasion (%) 50 Recoil Reduction 2 Item Schematics ----------------- None Robot Schematics ------------------ None Fabricated ------------ Nothing Alien Tech Used ----------------- None Achievements -------------- None Challenges ------------ None Game ------ Seed BiocellActiveNanoactuators Manual? 0 Play Time 00:30:35 Cumulative 6.4 hours Start 2024.09.07 @ 17:44:50 End 2024.09.15 @ 00:49:07 Sessions 3 Manual Loads 0 Difficulty Rogue Special Mode None Game No. 6 Rogue 6 Adventurer 0 Explorer 0 Win Type - Total 0 Types 0/0/0/0/0/0/0/0/0 Lore% 4 Gallery% 9 Achievement% 11 Wizard Run 0 Options --------- Layout 1 ASCII 0 Keyboard 0 Movement Mouse Keybinds 0 Fullscreen 2 Font 32/SmallcapsGlow Map View 50x35 Zoom Use 0% Tactical HUD 0 Map Filters NONE Filters NONE Steam 1 RUN: f2126969-2167-47a8-adf2-cb6c2956cac1